bitfinex-derivatives/quotes_BTCF0:USTF0_20210111
["timestamp","ask_amount","ask_price","bid_price","bid_amount"]
[1610323882655,0.13632608,37511.0,37491.0,0.0867]
[1610323883254,0.13632608,37511.0,37490.0,0.04030625]
[1610323883655,0.13632608,37491.0,37490.0,0.04030625]
[1610323884455,0.13632608,37491.0,37490.0,6.25e-06]
[1610323885255,0.42872608,37491.0,37490.0,6.25e-06]
[1610323902780,0.2924,37491.0,37490.0,6.25e-06]
[1610323903774,0.2924,37491.0,37490.0,0.13633233]
[1610323906275,0.1556,37583.0,37490.0,0.13633233]
[1610323907076,0.03299989,37582.0,37490.0,0.13633233]
[1610323907276,0.11115673,37582.0,37490.0,0.13633233]
[1610323907677,0.00032667,37581.0,37490.0,0.13633233]
[1610323907877,0.00032667,37581.0,37540.0,0.13632608]
[1610323909876,0.00032667,37581.0,37557.0,0.13632608]
[1610323910076,0.00032667,37581.0,37547.0,0.07745]
[1610323911878,0.00032667,37581.0,37572.0,0.13632608]
[1610323912878,0.11083,37582.0,37572.0,0.13632608]
[1610323913281,0.1556,37617.0,37572.0,0.13632608]
[1610323913779,0.13632608,37573.0,37572.0,0.13632608]
[1610323914178,0.13632608,37573.0,37564.0,0.09494]
[1610323914980,0.13632608,37573.0,37547.0,0.07745]
[1610323915180,0.13632608,37573.0,37537.0,0.10706]
[1610323915380,0.13632608,37573.0,37529.0,0.11341]
[1610323915581,0.13632608,37573.0,37466.0,1.5]
[1610323915782,0.2844,37572.0,37466.0,1.5]
[1610323915981,0.38358,37572.0,37525.0,0.13632608]
[1610323916180,0.38358,37572.0,37521.0,0.10346]
[1610323916779,0.2968,37571.0,37521.0,0.10346]
[1610323916980,0.29712669,37571.0,37521.0,0.10346]
[1610323917180,1.50032681,37570.0,37430.0,0.05]
[1610323917580,3.8379,37524.0,37468.0,4.4329]
[1610323917781,3.90887,37524.0,37468.0,4.4329]
[1610323917982,0.13632608,37491.0,37468.0,4.4329]
[1610323918181,0.23370608,37491.0,37468.0,4.4329]
[1610323918385,0.23370608,37491.0,37454.0,0.13632608]
[1610323919882,0.23370608,37491.0,37465.0,0.13632608]
[1610323923686,0.23370608,37491.0,37471.0,0.10297]
[1610323923885,0.23370608,37491.0,37481.0,0.13632608]
[1610323924085,0.23370608,37491.0,37471.0,0.10297]
[1610323924484,0.23370608,37491.0,37462.0,0.07675]
[1610323925886,0.23370608,37491.0,37471.0,0.13632608]
[1610323926088,0.23370608,37491.0,37462.0,0.07675]
[1610323927388,0.23370608,37491.0,37475.0,0.09278]
[1610323927788,0.13632608,37491.0,37483.0,0.09317]
[1610323927988,3.0468,37506.0,37490.0,0.13633233]
[1610323929789,3.0468,37506.0,37491.0,1.5]
[1610323929988,3.0468,37506.0,37505.0,0.13632608]
[1610323930188,3.0468,37506.0,37505.0,0.25283608]
[1610323930989,0.2767,37523.0,37505.0,0.25283608]
[1610323931190,0.2767,37523.0,37505.0,1.75283608]
[1610323931889,0.2767,37523.0,37522.0,0.13632608]
[1610323932089,0.2767,37523.0,37522.0,0.20965608]
[1610323934996,0.2767,37523.0,37522.0,0.07333]
[1610323935196,0.2767,37523.0,37505.0,0.11651]
[1610323935396,0.2767,37523.0,37491.0,0.07333]
[1610323935596,0.2767,37523.0,37456.0,1.5]
[1610323935796,0.2767,37523.0,37492.0,0.0002]
[1610323935996,0.2767,37523.0,37492.0,0.07943]
[1610323935997,0.13632608,37506.0,37492.0,0.07943]
[1610323936198,0.13632608,37506.0,37492.0,0.07923]
[1610323936399,0.13632608,37506.0,37493.0,0.0002]
[1610323936599,0.13632608,37506.0,37492.0,0.07923]
[1610323936798,0.13632608,37506.0,37455.0,4.3872]
[1610323937802,0.13632608,37506.0,37459.0,0.0002]
[1610323938002,0.13632608,37491.0,37459.0,0.0002]
[1610323938204,0.24586608,37491.0,37466.0,0.0002]
[1610323938603,0.24586608,37491.0,37459.0,0.0002]
[1610323939604,0.24586608,37491.0,37455.0,4.3872]
[1610323942007,0.24586608,37491.0,37456.0,0.13632608]
[1610323943308,0.24586608,37491.0,37460.0,0.0861]
[1610323943909,0.24586608,37491.0,37469.0,0.07844]
[1610323944911,0.24586608,37491.0,37460.0,0.0861]
[1610323946814,0.24586608,37491.0,37468.0,0.07273]
[1610323949216,0.24586608,37491.0,37477.0,0.07194]
[1610323950019,0.24586608,37491.0,37480.0,0.13632608]
[1610323950217,0.24586608,37491.0,37477.0,0.07194]
[1610323951020,0.24586608,37491.0,37468.0,0.07273]
[1610323951923,0.24586608,37491.0,37471.0,0.13632608]
[1610323954629,0.24586608,37491.0,37468.0,0.07273]
[1610323956035,0.24586608,37491.0,37470.0,0.13632608]
[1610323957437,0.24586608,37491.0,37471.0,0.0002]
[1610323957837,3.6829,37495.0,37485.0,0.07299]
[1610323958038,3.6829,37495.0,37494.0,0.13632608]
[1610323959239,3.6829,37495.0,37494.0,0.13652608]
[1610323959641,3.6829,37495.0,37494.0,0.13632608]
[1610323960843,3.6829,37495.0,37485.0,0.07299]
[1610323961443,3.6829,37495.0,37486.0,0.0002]
[1610323961946,3.6829,37495.0,37477.0,0.0002]
[1610323962145,0.13632608,37491.0,37485.0,0.13632608]
[1610323962344,3.6829,37495.0,37485.0,0.13632608]
[1610323962744,3.6829,37495.0,37488.0,0.10988]
[1610323963144,3.6829,37495.0,37488.0,1.60988]
[1610323963345,0.08,37494.0,37488.0,1.60988]
[1610323963545,3.6829,37495.0,37489.0,0.0002]
[1610323964146,3.6829,37495.0,37494.0,0.13632608]
[1610323964346,3.6829,37495.0,37494.0,1.63652608]
[1610323964547,0.2921,37557.0,37494.0,1.63652608]
[1610323964748,0.0795,37532.0,37494.0,1.63652608]
[1610323964947,0.0795,37532.0,37495.0,0.0002]
[1610323965146,0.10772,37538.0,37495.0,0.0002]
[1610323966147,0.10772,37538.0,37516.0,0.13632608]
[1610323966548,0.10772,37538.0,37517.0,0.0002]
[1610323968049,0.13632608,37520.0,37517.0,0.0002]
[1610323968451,0.13632608,37520.0,37502.0,0.1159]
[1610323968850,0.13632608,37520.0,37503.0,0.0002]
[1610323969250,0.13632608,37520.0,37489.0,0.0002]
[1610323970051,0.13632608,37493.0,37489.0,0.0002]
[1610323971552,0.13632608,37493.0,37485.0,0.13632608]
[1610323971753,0.13632608,37493.0,37439.0,0.0977]
[1610323971952,0.13632608,37493.0,37430.0,0.05]
[1610323972152,0.13632608,37493.0,37462.0,0.13632608]
[1610323972553,0.13632608,37493.0,37477.0,0.0002]
[1610323972952,0.13632608,37493.0,37463.0,0.0002]
[1610323973153,0.13632608,37493.0,37462.0,0.13632608]
[1610323973357,0.13632608,37493.0,37464.0,0.0002]
[1610323973754,0.13632608,37493.0,37463.0,0.0002]
[1610323973958,0.13632608,37493.0,37465.0,0.0002]
[1610323974157,0.13632608,37493.0,37464.0,0.0002]
[1610323974557,0.13632608,37493.0,37462.0,0.13632608]
[1610323974558,0.13632608,37493.0,37466.0,0.0002]
[1610323974758,0.13632608,37493.0,37463.0,0.0002]
[1610323974959,0.13632608,37493.0,37467.0,0.0002]
[1610323975358,0.13632608,37493.0,37464.0,0.0002]
[1610323975564,0.13632608,37493.0,37468.0,0.0002]
[1610323975765,0.13632608,37493.0,37465.0,0.0002]
[1610323976057,0.13632608,37493.0,37481.0,0.13632608]
[1610323976457,0.13632608,37493.0,37463.0,0.0002]
[1610323976658,0.13632608,37493.0,37470.0,0.0002]
[1610323976857,0.13632608,37493.0,37459.0,0.0002]
[1610323981062,0.13632608,37493.0,37430.0,0.05]
[1610323981262,1.5,37492.0,37430.0,0.05]
[1610323981663,2.24995571,37490.0,37430.0,0.05]
[1610323981862,2.25016034,37488.0,37430.0,0.05]
[1610323982263,0.13632608,37459.0,37430.0,0.05]
[1610323982463,0.22854608,37459.0,37430.0,0.05]
[1610323984864,0.22854608,37459.0,37458.0,5.195e-05]
[1610323991672,0.22854608,37459.0,37430.0,0.05]
[1610323992273,0.13632608,37431.0,37430.0,0.05]
[1610323992473,0.21323608,37431.0,37430.0,0.05]
[1610323994074,0.13632608,37431.0,37430.0,0.05]
[1610323994274,0.09628,37449.0,37430.0,0.05]
[1610323995074,0.2917,37458.0,37430.0,0.05]
[1610323996279,0.2917,37458.0,37442.0,0.13632608]
[1610323996479,0.09137,37488.0,37442.0,0.23173608]
[1610323996682,0.0801,37494.0,37442.0,0.23173608]
[1610323996879,2.23787361,37497.0,37442.0,0.23173608]
[1610323997079,0.2807,37498.0,37442.0,0.23173608]
[1610323998282,0.13632608,37474.0,37470.0,0.13632608]
[1610323998483,0.0936,37488.0,37442.0,0.09541]
[1610324000184,0.13632608,37443.0,37442.0,0.09541]
[1610324000787,0.13632608,37443.0,37432.0,3.252]
[1610324002089,0.13632608,37443.0,37430.0,0.05]
[1610324002290,0.13632608,37431.0,37430.0,0.05]
[1610324006590,0.13632608,37431.0,37414.0,4.4764]
[1610324006992,3.3274,37426.0,37372.0,3.5917]
[1610324007591,3.3274,37426.0,37403.0,0.0002]
[1610324007794,3.3274,37426.0,37402.0,0.00026083]
[1610324008193,0.13632608,37403.0,37402.0,0.00026083]
[1610324008393,0.13632608,37403.0,37372.0,3.5917]
[1610324008594,0.13632608,37403.0,37373.0,0.0002]
[1610324008792,0.13632608,37403.0,37373.0,0.08532]
[1610324008993,0.13632608,37403.0,37373.0,0.08512]
[1610324009394,0.0812,37402.0,37373.0,0.08512]
[1610324009794,0.13632608,37403.0,37373.0,0.08512]
[1610324009995,0.13632608,37403.0,37328.0,1.45884868]
[1610324010196,0.13632608,37374.0,37373.0,0.13632608]
[1610324010396,0.2982,37420.0,37329.0,1.45884868]
[1610324010596,0.2982,37420.0,37329.0,1.55898868]
[1610324010797,0.2982,37420.0,37330.0,0.0002]
[1610324011398,4.0378,37400.0,37330.0,0.0002]
[1610324012400,4.0378,37400.0,37363.0,0.13632608]
[1610324012600,4.0378,37400.0,37363.0,0.25237608]
[1610324012801,4.0378,37400.0,37364.0,0.0002]
[1610324014406,0.13632608,37366.0,37364.0,0.0002]
[1610324015304,0.13632608,37366.0,37363.0,0.11605]
[1610324017707,0.13632608,37366.0,37329.0,0.09994]
[1610324017912,0.13632608,37366.0,37327.0,4.4363]
[1610324018312,0.13632608,37348.0,37341.0,0.13632608]
[1610324018509,0.0791,37371.0,37341.0,0.13632608]
[1610324018709,0.02548781,41488.0,37341.0,0.25090608]
[1610324018911,0.09506,37402.0,37342.0,0.0002]
[1610324019308,0.2885,37392.0,37342.0,0.0002]
[1610324020308,0.2885,37392.0,37373.0,0.13632608]
[1610324020508,0.2783,37440.0,37373.0,0.22820608]
[1610324020708,5.5803,37393.0,37373.0,0.22820608]
[1610324020909,0.5737,37440.0,37373.0,0.22820608]
[1610324021108,0.0806,37427.0,37373.0,0.22820608]
[1610324021308,0.0789,37434.0,37373.0,0.22820608]
[1610324021510,0.0789,37434.0,37373.0,0.09188]
[1610324021710,0.00032779,37433.0,37373.0,0.09188]
[1610324022010,0.11247779,37433.0,37373.0,0.09188]
[1610324022411,0.13632608,37374.0,37373.0,0.09188]
[1610324025213,0.2978,37408.0,37373.0,0.09188]
[1610324025413,0.09539,37410.0,37373.0,0.09188]
[1610324025612,2.05769743,37452.0,37373.0,0.10481]
[1610324025813,0.2825,37448.0,37373.0,0.10481]
[1610324026014,0.2825,37448.0,37374.0,0.0002]
[1610324026415,0.13632608,37421.0,37416.0,0.13632608]
[1610324026815,0.10783,37441.0,37416.0,0.13632608]
[1610324027015,0.10783,37441.0,37416.0,0.20947608]
[1610324028016,0.2825,37448.0,37416.0,0.20947608]
[1610324028217,0.2931,37473.0,37416.0,0.20947608]
[1610324028417,0.2931,37473.0,37450.0,0.13632608]
[1610324029323,0.2927,37501.0,37450.0,0.13632608]
[1610324030328,0.2927,37501.0,37455.0,0.13632608]
[1610324030523,0.2927,37501.0,37455.0,0.08209]
[1610324031123,2.06751281,37498.0,37455.0,0.08209]
[1610324031323,2.16544281,37498.0,37455.0,0.08209]
[1610324031525,2.06943466,37497.0,37455.0,0.08209]
[1610324032326,0.13632608,37456.0,37455.0,0.08209]
[1610324035429,0.13632608,37456.0,37453.0,0.13632608]
[1610324037930,0.08383,37479.0,37453.0,0.13632608]
[1610324038130,0.09793,37498.0,37453.0,0.13632608]
[1610324038331,0.2927,37501.0,37473.0,0.13632608]
[1610324038531,0.2927,37501.0,37473.0,0.22817608]
[1610324038931,2.07540796,37509.0,37473.0,0.22817608]
[1610324039132,2.0749346,37514.0,37473.0,0.08492]
[1610324039534,0.2983,37519.0,37473.0,0.08492]
[1610324040331,0.13632608,37502.0,37492.0,0.13632608]
[1610324040931,0.13632608,37502.0,37473.0,0.08492]
[1610324042334,0.13632608,37502.0,37492.0,0.13632608]
[1610324042534,0.13632608,37502.0,37492.0,0.24005608]
[1610324043035,0.13632608,37502.0,37492.0,0.10373]
[1610324044338,0.282,37527.0,37496.0,0.13632608]
[1610324045141,0.2912,37528.0,37496.0,0.13632608]
[1610324045742,0.2899,37541.0,37496.0,0.13632608]
[1610324046343,0.2899,37541.0,37518.0,0.13632608]
[1610324046743,0.2899,37541.0,37516.0,0.07862]
[1610324046943,0.38514,37541.0,37516.0,0.07862]
[1610324047543,0.38514,37541.0,37492.0,0.10373]
[1610324047744,0.38514,37541.0,37473.0,0.08492]
[1610324048145,0.38514,37541.0,37416.0,1.5]
[1610324048344,0.13632608,37486.0,37478.0,0.13632608]
[1610324048745,0.13632608,37486.0,37417.0,0.1]
[1610324048944,0.13632608,37486.0,37439.0,7.9634]
[1610324049145,0.13632608,37486.0,37439.0,1.5]
[1610324050146,0.13632608,37486.0,37418.0,1.5]
[1610324050547,0.13632608,37458.0,37454.0,0.13632608]
[1610324050747,0.13632608,37458.0,37418.0,1.5]
[1610324051147,0.13632608,37458.0,37383.0,2.68955668]
[1610324051148,0.13632608,37458.0,37392.0,1.5]
[1610324051749,0.13632608,37458.0,37393.0,0.0002]
[1610324052148,0.13632608,37458.0,37393.0,0.09863]
[1610324052552,0.2725,37476.0,37394.0,0.0002]
[1610324052748,0.2725,37476.0,37393.0,0.09843]
[1610324052952,0.2725,37476.0,37395.0,0.0002]
[1610324053350,0.2725,37476.0,37394.0,0.0002]
[1610324054551,0.13632608,37419.0,37418.0,0.13632608]
[1610324054951,0.13632608,37419.0,37418.0,0.13652608]
[1610324055752,0.11574,37449.0,37418.0,0.13652608]
[1610324055951,0.11574,37449.0,37418.0,0.25014608]
[1610324056152,0.11574,37449.0,37419.0,0.0002]
[1610324056554,0.13632608,37436.0,37426.0,0.13632608]
[1610324056760,0.13632608,37436.0,37427.0,0.0002]
[1610324056957,0.09278,37457.0,37427.0,0.10069]
[1610324057363,0.09278,37457.0,37427.0,1.60069]
[1610324057555,0.09278,37457.0,37428.0,0.0002]
[1610324057761,0.2725,37476.0,37428.0,0.0002]
[1610324058155,0.09787,37477.0,37428.0,0.0002]
[1610324058559,0.2916,37493.0,37453.0,0.13632608]
[1610324058763,0.2916,37493.0,37453.0,0.20971608]
[1610324058959,3.7833,37513.0,37454.0,0.0002]
[1610324059158,0.273,37512.0,37454.0,0.0002]
[1610324060558,0.13632608,37506.0,37494.0,0.13632608]
[1610324062462,0.13632608,37495.0,37494.0,0.13632608]
[1610324063063,0.13632608,37495.0,37453.0,1.57339]
[1610324063463,0.13632608,37495.0,37454.0,0.0002]
[1610324064466,0.13632608,37482.0,37476.0,0.13632608]
[1610324064866,0.13632608,37482.0,37454.0,0.0002]
[1610324065064,0.13632608,37482.0,37453.0,0.07339]
[1610324065264,0.13632608,37482.0,37442.0,1.5]
[1610324065265,0.11546,37509.0,37442.0,1.5]
[1610324065466,0.11546,37509.0,37454.0,0.0002]
[1610324065664,0.273,37512.0,37454.0,0.11726]
[1610324065864,0.273,37512.0,37455.0,1.5]
[1610324066064,0.273,37512.0,37456.0,0.0002]
[1610324066464,0.13632608,37506.0,37496.0,0.13632608]
[1610324067665,0.13632608,37506.0,37454.0,0.11706]
[1610324068167,0.13632608,37506.0,37455.0,0.0002]
[1610324068566,0.13632608,37493.0,37482.0,0.13632608]
[1610324070571,0.13632608,37483.0,37482.0,0.13632608]
[1610324071876,0.36156,37512.0,37482.0,0.13632608]
[1610324072072,0.36156,37512.0,37482.0,0.25054608]
[1610324072476,0.13632608,37497.0,37487.0,0.13632608]
[1610324073072,0.08856,37512.0,37487.0,0.13632608]
[1610324073278,0.10215,37523.0,37487.0,0.13632608]
[1610324073473,4.0238,37531.0,37487.0,0.13632608]
[1610324074072,4.0238,37531.0,37488.0,0.0002]
[1610324074474,0.13632608,37506.0,37503.0,0.13632608]
[1610324075280,4.0238,37531.0,37503.0,0.13632608]
[1610324075477,4.0238,37531.0,37503.0,0.23671608]
[1610324076574,4.0238,37531.0,37510.0,0.13632608]
[1610324076974,4.0238,37531.0,37503.0,0.10039]
[1610324077175,0.10657,37533.0,37503.0,0.10039]
[1610324078576,0.10657,37533.0,37504.0,0.13632608]
[1610324079777,3.4711,37558.0,37504.0,0.13632608]
[1610324080578,0.13632608,37505.0,37504.0,0.13632608]
[1610324085096,0.08252,37528.0,37504.0,0.13632608]
[1610324085295,0.08252,37528.0,37504.0,0.13652608]
[1610324085789,2.07573659,37555.0,37505.0,0.0002]
[1610324086393,2.07808695,37552.0,37505.0,0.0002]
[1610324086593,0.13632608,37510.0,37505.0,0.0002]
[1610324089395,0.07217,37533.0,37505.0,0.0002]
[1610324089696,0.2741,37550.0,37505.0,0.0002]
[1610324090695,0.13632608,37524.0,37518.0,0.13632608]
[1610324091099,0.13632608,37524.0,37519.0,0.0002]
[1610324091297,0.13632608,37524.0,37519.0,0.07632]
[1610324091698,0.13632608,37524.0,37520.0,0.0002]
[1610324092899,0.2741,37550.0,37520.0,0.0002]
[1610324093299,0.2951,37557.0,37520.0,0.0002]
[1610324093700,3.4711,37558.0,37520.0,0.0002]
[1610324094704,0.13632608,37545.0,37520.0,0.0002]
[1610324094902,3.4711,37558.0,37520.0,0.0002]
[1610324095101,3.4711,37558.0,37519.0,0.07612]
[1610324095301,3.4711,37558.0,37520.0,0.0002]
[1610324095902,0.08729,37567.0,37520.0,0.0002]
[1610324096704,0.08729,37567.0,37542.0,0.13632608]
[1610324096903,0.08729,37567.0,37543.0,0.0002]
[1610324098606,0.13632608,37544.0,37543.0,0.0002]
[1610324098806,0.08729,37567.0,37543.0,0.0002]
[1610324099007,0.2726,37568.0,37543.0,0.0002]
[1610324099509,0.2726,37568.0,37542.0,0.24459608]
[1610324100410,0.1726,37568.0,37542.0,0.24459608]
[1610324100610,0.13632608,37543.0,37542.0,0.10827]
[1610324102012,0.13632608,37543.0,37538.0,0.13632608]
[1610324102614,0.07073,37566.0,37539.0,0.0002]
[1610324102814,0.07073,37566.0,37539.0,0.0921]
[1610324103215,0.07073,37566.0,37540.0,0.0002]
[1610324104615,0.13632608,37545.0,37544.0,0.13632608]
[1610324105216,0.07571,37575.0,37544.0,0.13652608]
[1610324105417,0.2992,37593.0,37545.0,0.0002]
[1610324106715,0.2992,37593.0,37558.0,0.13632608]
[1610324106921,0.2992,37593.0,37558.0,0.22043608]
[1610324108615,0.13632608,37564.0,37558.0,0.22043608]
[1610324110718,0.13632608,37564.0,37563.0,0.13632608]
[1610324111619,0.2992,37593.0,37563.0,0.13632608]
[1610324112621,0.2992,37593.0,37558.0,0.08411]
[1610324112622,0.13632608,37577.0,37570.0,0.13632608]
[1610324113320,0.10676,37602.0,37570.0,0.13632608]
[1610324113521,0.10676,37602.0,37570.0,0.24932608]
[1610324113922,4.2538,37605.0,37570.0,0.24932608]
[1610324114724,0.13632608,37605.0,37604.0,0.13632608]
[1610324115124,0.5799,37624.0,37604.0,0.13632608]
[1610324115323,2.06090494,37649.0,37604.0,0.13632608]
[1610324115724,2.06070482,37652.0,37604.0,0.13632608]
[1610324116223,2.63113872,37657.0,37604.0,0.13632608]
[1610324116624,0.13632608,37618.0,37610.0,0.13632608]
[1610324118624,0.13632608,37628.0,37617.0,0.13632608]
[1610324119025,0.13632608,37628.0,37617.0,0.21565608]
[1610324119726,0.13632608,37628.0,37617.0,0.07933]
[1610324120426,0.1138,37640.0,37617.0,0.07933]
[1610324120624,0.13632608,37666.0,37639.0,0.13632608]
[1610324120826,0.13632608,37666.0,37639.0,0.24471608]
[1610324122726,0.2764,37708.0,37647.0,0.13632608]
[1610324122927,0.2764,37708.0,37647.0,0.20976608]
[1610324124126,0.2764,37708.0,37653.0,4.2679]
[1610324124528,0.2777,37707.0,37653.0,4.2679]
[1610324124730,0.37557,37707.0,37677.0,0.13632608]
[1610324125831,0.37557,37707.0,37677.0,0.24633608]
[1610324126230,0.09787,37707.0,37677.0,0.24633608]
[1610324126831,0.13632608,37707.0,37706.0,0.13632608]
[1610324127032,0.2991,37732.0,37706.0,0.13632608]
[1610324128435,0.2991,37732.0,37694.0,0.11632]
[1610324128635,0.40743,37732.0,37694.0,0.11632]
[1610324128835,0.13632608,37695.0,37694.0,0.11632]
[1610324129035,0.13632608,37695.0,37681.0,3.6218]
[1610324130837,0.13632608,37687.0,37681.0,3.6218]
[1610324132040,0.08586,37715.0,37681.0,3.6218]
[1610324132840,0.13632608,37705.0,37689.0,0.13632608]
[1610324134842,0.40743,37732.0,37680.0,3.8218]
[1610324134843,0.13632608,37709.0,37695.0,0.13632608]
[1610324135243,0.40743,37732.0,37695.0,0.21809608]
[1610324135642,0.10833,37732.0,37695.0,0.21809608]
[1610324135843,4.3767,37744.0,37695.0,0.21809608]
[1610324136846,0.13632608,37742.0,37718.0,0.13632608]
[1610324138644,0.13632608,37742.0,37695.0,0.08177]
[1610324138847,0.13632608,37719.0,37712.0,0.13632608]
[1610324139446,0.13632608,37719.0,37695.0,0.08177]
[1610324140246,0.13632608,37719.0,37680.0,3.8218]
[1610324140846,0.13632608,37712.0,37680.0,3.8218]
[1610324141046,0.08972,37739.0,37680.0,3.8218]
[1610324142148,0.2727,37743.0,37680.0,3.8218]
[1610324142850,0.2727,37743.0,37703.0,0.13632608]
[1610324143249,0.2727,37743.0,37703.0,0.25255608]
[1610324143451,0.00032516,37742.0,37703.0,0.25255608]
[1610324143852,0.2727,37743.0,37703.0,0.25255608]
[1610324144051,0.00032518,37742.0,37703.0,0.25255608]
[1610324144251,0.2727,37743.0,37703.0,0.25255608]
[1610324144851,0.13632608,37704.0,37703.0,0.11623]
[1610324146753,0.13632608,37704.0,37703.0,0.25255608]
[1610324147252,0.13632608,37704.0,37703.0,0.11623]
[1610324148254,0.13632608,37704.0,37690.0,3.9511]
[1610324148853,0.13632608,37691.0,37690.0,3.9511]
[1610324151153,0.13632608,37691.0,37690.0,3.9513]
[1610324151755,0.13632608,37691.0,37690.0,3.9511]
[1610324152355,0.09989,37725.0,37690.0,3.9511]
[1610324152556,0.11691,37734.0,37690.0,0.11353]
[1610324152757,0.00032504,37724.0,37695.0,0.13632608]
[1610324153156,0.11011,37733.0,37695.0,0.13632608]
[1610324153357,0.00032504,37723.0,37695.0,0.13632608]
[1610324153555,0.00032502,37732.0,37696.0,0.0002]
[1610324153956,3.5681,37735.0,37696.0,0.0002]
[1610324154157,0.00032497,37731.0,37696.0,0.0002]
[1610324154357,0.00032495,37734.0,37696.0,0.0002]
[1610324154756,0.13632608,37709.0,37708.0,0.13632608]
[1610324155158,0.13632608,37709.0,37690.0,0.11353]
[1610324155658,0.13632608,37709.0,37691.0,0.0002]
[1610324156059,0.13632608,37709.0,37690.0,0.11353]
[1610324156860,0.13632608,37691.0,37690.0,0.11353]
[1610324157662,0.13632608,37691.0,37687.0,0.13632608]
[1610324158565,4.2825,37720.0,37687.0,0.13632608]
[1610324158765,0.13632608,37719.0,37703.0,0.13632608]
[1610324160765,0.13632608,37704.0,37687.0,0.0986]
[1610324162865,0.13632608,37704.0,37703.0,0.13632608]
[1610324163065,0.13632608,37704.0,37703.0,0.21744608]
[1610324163266,0.13632608,37704.0,37703.0,0.08112]
[1610324164866,0.5167,37719.0,37703.0,0.21744608]
[1610324166867,0.13632608,37725.0,37718.0,0.13632608]
[1610324167069,0.13632608,37725.0,37718.0,0.24265608]
[1610324168972,0.13632608,37725.0,37718.0,0.10633]
[1610324170870,0.13632608,37719.0,37718.0,0.10633]
[1610324171070,0.2984,37734.0,37718.0,0.10633]
[1610324171474,4.1919,37763.0,37718.0,0.10633]
[1610324171672,0.2986,37762.0,37718.0,0.10633]
[1610324172071,0.2986,37762.0,37714.0,0.13632608]
[1610324172876,0.13632608,37727.0,37720.0,0.13632608]
[1610324174275,0.2986,37762.0,37720.0,0.13632608]
[1610324174474,0.2986,37762.0,37720.0,0.20674608]
[1610324174674,0.2728,37761.0,37720.0,0.20674608]
[1610324174875,0.13632608,37743.0,37741.0,0.13632608]
[1610324175275,0.2728,37761.0,37741.0,0.13632608]
[1610324175475,0.2728,37761.0,37741.0,0.21115608]
[1610324176877,0.13632608,37755.0,37747.0,0.13632608]
[1610324177477,0.13632608,37755.0,37748.0,0.00020099]
[1610324177876,0.13632608,37755.0,37747.0,0.13632608]
[1610324178278,0.13632608,37755.0,37741.0,0.07483]
[1610324178678,0.13632608,37755.0,37742.0,0.00020101]
[1610324178880,0.13632608,37743.0,37741.0,0.07483]
[1610324179681,0.13632608,37743.0,37742.0,0.00020101]
[1610324182283,0.7889,37761.0,37742.0,0.00020101]
[1610324182885,0.13632608,37747.0,37742.0,0.00020101]
[1610324185189,0.7889,37761.0,37742.0,0.00020101]
[1610324186891,0.13632608,37751.0,37742.0,0.00020101]
[1610324188792,0.07632608,37751.0,37742.0,0.00020101]
[1610324190995,0.13632608,37743.0,37742.0,0.00020101]
[1610324192997,0.13632608,37743.0,37721.0,0.13652879]
[1610324193497,0.13632608,37743.0,37722.0,0.00020271]
[1610324193697,0.13632608,37743.0,37721.0,0.00020271]
[1610324194899,0.13632608,37722.0,37721.0,0.00020271]
[1610324197202,0.10003,37747.0,37721.0,0.00020271]
[1610324198405,1.5,37746.0,37721.0,0.00020271]
[1610324198605,1.60584,37746.0,37721.0,0.00020271]
[1610324199005,0.13632608,37722.0,37721.0,0.00020271]
[1610324199206,0.24434608,37722.0,37721.0,0.00020271]
[1610324199405,4.63434608,37722.0,37704.0,0.00020156]
[1610324200407,4.63434608,37722.0,37688.0,0.00020159]
[1610324200908,0.13632608,37689.0,37683.0,0.01644528]
[1610324201308,0.13632608,37689.0,37683.0,0.00020159]
[1610324201509,0.13632608,37689.0,37684.0,0.00020162]
[1610324201709,0.13632608,37689.0,37683.0,0.00020162]
[1610324202910,0.13632608,37684.0,37683.0,0.00020162]
[1610324206212,0.13632608,37684.0,37682.0,3.924]
[1610324207914,0.09652,37693.0,37682.0,3.924]
[1610324208113,0.07224,37702.0,37682.0,3.99861]
[1610324208313,0.2822,37721.0,37683.0,0.00020111]
[1610324208713,0.2822,37721.0,37683.0,0.00020109]
[1610324208913,0.13632608,37688.0,37683.0,0.00020109]
[1610324209717,0.08956,37708.0,37683.0,0.00020109]
[1610324210320,0.2822,37721.0,37683.0,0.00020109]
[1610324210919,0.13632608,37689.0,37683.0,0.00020109]
[1610324213022,0.13632608,37684.0,37683.0,0.00020109]
[1610324223835,1.63632608,37684.0,37683.0,0.00020109]
[1610324224035,1.63632608,37684.0,37674.0,0.00020606]
[1610324224236,1.63632608,37684.0,37672.0,3.52]
[1610324224436,1.63632608,37684.0,37604.0,2.39539597]
[1610324224636,1.63632608,37684.0,37595.0,2.39472097]
[1610324224836,0.2748,37683.0,37605.0,0.04976432]
[1610324225037,1.7748,37683.0,37629.0,0.13632608]
[1610324225236,1.7748,37683.0,37629.0,0.08836]
[1610324225437,1.7748,37683.0,37630.0,0.0002055]
[1610324225836,0.2897,37682.0,37630.0,0.0002055]
[1610324226036,0.36797,37682.0,37630.0,0.0002055]
[1610324226438,1.0,37671.0,37630.0,0.0002055]
[1610324226637,1.1143,37671.0,37630.0,0.0002055]
[1610324227039,0.13632608,37631.0,37630.0,0.0002055]
[1610324229439,0.13632608,37631.0,37630.0,0.00020557]
[1610324231041,0.13632608,37631.0,37588.0,0.13632608]
[1610324231442,0.13632608,37631.0,37589.0,0.00020446]
[1610324231642,0.2807,37630.0,37589.0,0.08584446]
[1610324232042,0.2807,37630.0,37590.0,0.00020448]
[1610324232642,0.2849,37629.0,37590.0,0.00020448]
[1610324233044,0.2849,37629.0,37614.0,0.13632608]
[1610324233244,0.2849,37629.0,37614.0,0.23792608]
[1610324233845,0.2807,37630.0,37614.0,0.23792608]
[1610324234044,0.01936721,41615.0,37614.0,0.23792608]
[1610324234045,0.3669,37696.0,37614.0,0.23792608]
[1610324234244,0.3003,37670.0,37614.0,0.23792608]
[1610324234445,0.3003,37670.0,37615.0,0.0002044]
[1610324235045,0.2842,37669.0,37631.0,0.13632608]
[1610324237048,0.13632608,37632.0,37626.0,0.13632608]
[1610324237649,0.13632608,37632.0,37614.0,0.1016]